Cogmind - Beta 13 @@@ ROGUE MODE // 2024.04.21 @ 09:30:03 Player: YBOUZL Result: Destroyed by G-47 Trooper with Particle Gun Performance ------------- Evolutions (2) 1000 Regions Visited (4) 800 Robots Destroyed (34) 170 Value Destroyed (899) 899 Prototype IDs (1) 20 Alien Tech Used (0) 0 Bonus (150) 150 TOTAL SCORE: 3039 Bonus ------- High Alert Combat Kills 22 Follower Combat Kills 133 Friendly Fire -5 Cogmind --------- Core Integrity 0/550 Matter 205/450 Energy 87/100 System Corruption 11% Temperature Cool (9) Movement Core (350) Ox6 Location -8/Materials Parts ------- > --- POWER (2) -------- (None) > --- PROPULSION (3) --- (None) > --- UTILITY (3) ------ Large Storage Unit Compact Matter Pod > --- WEAPON (3) ------- (None) > --- INVENTORY (15) --- Small Storage Unit Small Laser Light Assault Rifle Peak State ------------ > --- POWER ------------ Light Ion Engine > --- PROPULSION ------- Aluminum Leg Carbon-fiber Leg Carbon-fiber Leg > --- UTILITY ---------- Improved Heat Sink Large Storage Unit Seismic Detector > --- WEAPON ----------- Advanced Beam Rifle Heavy Laser Heavy Ion Cannon > --- INVENTORY -------- Aluminum Leg Aluminum Leg Small Storage Unit Medium Battery Compact Matter Pod Small Laser Small Laser Small Laser Light Assault Rifle Missile Launcher [Rating: 26] Favorites ----------- Power Ion Engine Engine Ion Engine Propulsion Light Treads Treads Light Treads Leg Aluminum Leg Utility Seismic Detector Device Seismic Detector Storage Large Storage Unit Processor Signal Interpreter Weapon Small Laser Energy Gun Small Laser Energy Cannon Heavy Ion Cannon Ballistic Gun Assault Rifle Launcher Missile Launcher Build | -11 -10 -10 -9 -8 ------- Run | Yrd Mat Min Mat Mat Slots Evolved 4 | . . . 2 2 Power 1 | . . . 1 . Propulsion 1 | . . . . 1 Utility 1 | . . . . 1 Weapon 1 | . . . 1 . Parts Attached 53 | 6 11 13 7 16 Power 4 | 1 . 2 1 . Engine 4 | 1 . 2 1 . Core . | . . . . . Reactor . | . . . . . Propulsion 13 | 2 2 4 2 3 Treads 5 | 2 2 1 . . Leg 8 | . . 3 2 3 Wheel . | . . . . . Hover . | . . . . . Flight . | . . . . . Utility 8 | 1 4 . . 3 Device 2 | . 1 . . 1 Storage 5 | 1 2 . . 2 Processor 1 | . 1 . . . Hackware . | . . . . . Protection . | . . . . . Artifact . | . . . . . Weapon 28 | 2 5 7 4 10 Energy Gun 13 | 1 2 3 2 5 Energy Cannon 3 | . . . . 3 Ballistic Gun 5 | 1 1 2 1 . Ballistic Cannon . | . . . . . Launcher 7 | . 2 2 1 2 Special Weapon . | . . . . . Impact Weapon . | . . . . . Slashing Weapon . | . . . . . Piercing Weapon . | . . . . . Special Melee Weapon . | . . . . . Unidentified Prototypes 1 | . . . . 1 Parts Lost 25 | . 1 6 1 17 Power 4 | . 1 1 . 2 Propulsion 8 | . . 3 . 5 Utility 3 | . . . . 3 Weapon 10 | . . 2 1 7 Highest Loss Streak 16 | . 1 6 1 16 To Critical Strikes . | . . . . . Average Slot Usage (%) 89 | . 90 89 93 80 Engine 9 | . 9 7 15 8 Treads 12 | . 28 7 . . Leg 13 | . . 17 22 23 Device 12 | . 10 14 11 13 Storage 13 | . 14 14 11 11 Energy Gun 16 | . 20 14 18 9 Ballistic Gun 8 | . 6 10 10 2 Launcher 2 | . 1 2 4 6 Naked Turns . | . . . . . Heaviest Build 43 | 12 24 29 37 43 Greatest Support 40 | 40 40 40 30 40 Greatest Overweight (x) 9 | . . 9 1 7 Average Overweight (x) . | . . . . . Largest Inventory Capacity 15 | 8 15 15 15 15 Average Capacity 12 | 6 8 15 15 15 Most Carried 11 | 4 5 8 10 11 Average Carried 5 | . 2 6 8 7 Final Capacity 15 | 8 15 15 15 15 Final Carried 10 | . 5 7 10 3 Class Distribution -------------------- 59% | Mutant 18% | Scavenger-Mutant 17% | Scavenger-Gunner 4% | Gunner Dominant Class ---------------- Mutant | -10/Materials Scavenger-Mutant | -10/Mines Scavenger-Gunner | -9/Materials Mutant | -8/Materials Resources | -11 -10 -10 -9 -8 ----------- Run | Yrd Mat Min Mat Mat Matter Collected 753 | 216 185 114 191 47 Remotely . | . . . . . Salvage Created 960 | . 185 204 73 498 Parts 64 | . 7 14 9 34 Haulers Intercepted 1 | . . . . 1 Recyclers Shooed 1 | . 1 . . . Parts Field Recycled . | . . . . . Retrieved Matter . | . . . . . Parts Self-Destructed . | . . . . . Prevented . | . . . . . Kills | -11 -10 -10 -9 -8 ------- Run | Yrd Mat Min Mat Mat Combat Hostiles Destroyed 28 | . 5 9 4 10 Guns 14 | . 3 6 4 1 Cannons 2 | . . . . 2 AOE 10 | . 1 2 . 7 Classes Destroyed 10 | . 1 2 2 5 Worker 1 | . . . . 1 Builder 3 | . . . 1 2 Tunneler 1 | . . 1 . . Hauler 1 | . . . . 1 Recycler 2 | . . . . 2 Watcher 1 | . . . . 1 Swarmer 7 | . . . 4 3 Grunt 17 | . 5 6 . 6 Sentry 1 | . . . . 1 Assembled 3 | . . 3 . . Best Kill Streak 14 | . 2 6 4 14 Combat Bots Only 8 | . 2 5 4 8 Max Kills in Single Turn 6 | . 1 2 2 6 Gunslinging . | . . . . . Exploded 4 | . 1 1 . 4 Melee . | . . . . . Uniques/NPCs Destroyed . | . . . . . Combat | -11 -10 -10 -9 -8 -------- Run | Yrd Mat Min Mat Mat Hostile Shots Fired 273 | . 54 51 13 155 Missed 82 | . 14 17 2 49 Damage Taken 3095 | . 505 492 143 1955 Core 738 | . 83 82 17 556 Absorbed by Shields . | . . . . . Core Remaining (%) 76 | 100 . 34 95 . Volleys Fired 86 | . 40 18 6 22 Largest 3 | . 2 2 3 3 Hottest 195 | . 90 80 120 195 Shots Fired 178 | . 74 32 17 55 Gun 140 | . 72 23 15 30 Cannon 13 | . . . . 13 Launcher 25 | . 2 9 2 12 Special . | . . . . . Kinetic 39 | . 20 11 4 4 Thermal 114 | . 52 12 11 39 Explosive 25 | . 2 9 2 12 Electromagnetic . | . . . . . Robot Hit Streak 9 | . 7 8 9 4 Robot Miss Streak 7 | . 5 3 1 7 Penetration Max . | . . . . . Secondary Targets 2 | . . 1 1 . Max Gunslinging Chain 1 | . . 1 1 . Shots Hit Robots 99 | . 46 18 8 27 Core Hits 67 | . 9 19 7 32 Critical Kills . | . . . . . Critical Parts Destroyed . | . . . . . Critical Strikes 3 | . 3 . . . Burn 3 | . 3 . . . Melee Attacks . | . . . . . Impact . | . . . . . Slashing . | . . . . . Piercing . | . . . . . Sneak Attacks . | . . . . . Combat Hostiles . | . . . . . Follow-up Attacks . | . . . . . Damage Inflicted 3290 | . 699 546 240 1805 Guns 1136 | . 558 206 84 288 Cannons 243 | . . . . 243 Explosions 1910 | . 140 340 156 1274 Melee . | . . . . . Ramming 1 | . 1 . . . Kinetic 362 | . 203 115 28 16 Thermal 1017 | . 355 91 56 515 Explosive 1910 | . 140 340 156 1274 Electromagnetic . | . . . . . Impact . | . . . . . Slashing . | . . . . . Piercing . | . . . . . Highest Corruption 11 | . . . . 11 Average Corruption 11 | . . . . 11 Corruption Purged . | . . . . . Corruption Blocked . | . . . . . Effects 2 | . . . . 2 Message Errors 1 | . . . . 1 Misfires 1 | . . . . 1 Overload Shots . | . . . . . Overflow Damage 34 | . . 4 . 30 Projectiles . | . . . . . Explosions 34 | . . 4 . 30 Melee . | . . . . . Knockbacks . | . . . . . Impact . | . . . . . Kinetic . | . . . . . Secondary . | . . . . . Self-Inflicted Damage 155 | . . 106 8 41 Shots 10 | . . 6 1 3 Rammed 1 | . 1 . . . Targets Rammed 1 | . 1 . . . Kicked . | . . . . . Crushed . | . . . . . Highest Temperature 232 | . 202 30 102 232 Average Temperature 63 | . 77 8 42 64 Received Heat Transfer 1451 | . 327 179 27 918 Siege Activations . | . . . . . Robots Corrupted . | . . . . . Combat Hostiles . | . . . . . Parts Fried . | . . . . . Impact Corruptions . | . . . . . Robots Melted 1 | . 1 . . . Combat Hostiles 1 | . 1 . . . Parts Melted 1 | . . . . 1 Heat Transferred 2389 | . 1187 212 125 865 Parts Sabotaged . | . . . . . Parts Stolen . | . . . . . Parts Stripped . | . . . . . Power Chain Reactions . | . . . . . Alert | -11 -10 -10 -9 -8 ------- Run | Yrd Mat Min Mat Mat Peak Influence 471 | . 145 146 263 471 Initial 110 | . . 5 . 110 Average 92 | . 42 70 85 306 Maximum Alert Level 2 | . . . 1 2 Low Security (%) 88 | 100 100 100 84 34 Level 1 5 | . . . 15 21 Level 2 5 | . . . . 44 Level 3 . | . . . . . Level 4 . | . . . . . Level 5 . | . . . . . High Security . | . . . . . Max Security . | . . . . . Squads Dispatched 7 | . 1 . 2 4 Investigation 4 | . 1 . 2 1 Extermination . | . . . . . Reinforcement 3 | . . . . 3 Assault . | . . . . . Garrison . | . . . . . Intercept . | . . . . . Searches Triggered . | . . . . . Construction Impeded . | . . . . . Haulers Reinforced . | . . . . . Active Scanning Responses . | . . . . . Cargo Convoy Interrupts . | . . . . . Stealth | -11 -10 -10 -9 -8 --------- Run | Yrd Mat Min Mat Mat Distress Signals 3 | . . 1 . 2 Communications Jammed . | . . . . . Distress Signals . | . . . . . Times Spotted 52 | . 10 9 9 24 Peak Tracking Total 9 | . 3 3 5 9 Tactical Retreats 4 | . . . . 4 Traps | -11 -10 -10 -9 -8 ------- Run | Yrd Mat Min Mat Mat Traps Triggered . | . . . . . Indirectly . | . . . . . Trap Hack Attempts . | . . . . . Triggered . | . . . . . Disarmed . | . . . . . Reprogrammed . | . . . . . Reused . | . . . . . Traps Extracted . | . . . . . Installed . | . . . . . Triggered . | . . . . . Machines | -11 -10 -10 -9 -8 ---------- Run | Yrd Mat Min Mat Mat Machines Disabled 4 | . . . 1 3 Max in Single Turn 1 | . . . . 1 Machines Repaired . | . . . . . Machines Dismantled . | . . . . . Machines Sabotaged . | . . . . . Overloaded Fab Kills . | . . . . . Hacking | -11 -10 -10 -9 -8 --------- Run | Yrd Mat Min Mat Mat Machines Accessed 5 | . 2 . 2 1 Terminals 4 | . 1 . 2 1 Fabricators . | . . . . . Repair Stations . | . . . . . Recycling Units 1 | . 1 . . . Scanalyzers . | . . . . . Garrison Access . | . . . . . Total Hacks 17 | . 8 . 6 3 Successful 4 | . 2 . 1 1 Failed 13 | . 6 . 5 2 Catastrophic 2 | . 1 . . 1 Database Lockouts . | . . . . . Manual . | . . . . . Terminals 13 | . 4 . 6 3 Fabricators . | . . . . . Repair Stations . | . . . . . Recycling Units 4 | . 4 . . . Scanalyzers . | . . . . . Garrison Access . | . . . . . Terminal Hacks 2 | . . . 1 1 Record 1 | . . . 1 . Zone Layout 1 | . . . . 1 Fabricator Hacks . | . . . . . Repair Station Hacks . | . . . . . Recycling Unit Hacks 2 | . 2 . . . Report Inventory 1 | . 1 . . . Retrieve Components 1 | . 1 . . . Scanalyzer . | . . . . . Garrison Access Hacks . | . . . . . Unauthorized Hacks . | . . . . . Terminals . | . . . . . Fabricators . | . . . . . Repair Stations . | . . . . . Recycling Units . | . . . . . Scanalyzers . | . . . . . Garrison Access . | . . . . . Data Cores Recovered . | . . . . . Used . | . . . . . Hacking Detections 5 | . 2 . 2 1 Full Trace Events 4 | . 1 . 2 1 Feedback Events . | . . . . . Feedback Blocked . | . . . . . Robot Schematics Acquired . | . . . . . Robots Built . | . . . . . Authchips . | . . . . . Time . | . . . . . Total Robot Build Rating . | . . . . . Part Schematics Acquired . | . . . . . Parts Built . | . . . . . Authchips . | . . . . . Time . | . . . . . Total Part Build Rating . | . . . . . Parts Repaired . | . . . . . Time . | . . . . . Parts Recycled . | . . . . . Recycled Matter . | . . . . . Retrieved Matter . | . . . . . Retrieved Components 2 | . 2 . . . Parts Scanalyzed . | . . . . . Part Schematics Acquired . | . . . . . Parts Damaged . | . . . . . Bothacking | -11 -10 -10 -9 -8 ------------ Run | Yrd Mat Min Mat Mat Used RIF Installer . | . . . . . Robots Hacked . | . . . . . Non-combat . | . . . . . Combat . | . . . . . Robot Hacks Applied . | . . . . . Relay Couplers Released . | . . . . . Fabnet Peak Effective % . | . . . . . Robots Rewired . | . . . . . Allies Hacked . | . . . . . Hacks Repelled . | . . . . . Allies | -11 -10 -10 -9 -8 -------- Run | Yrd Mat Min Mat Mat Total Allies 3 | . . 3 . . Largest Group 3 | . . 3 3 3 Highest-Rated Group 40 | . . 40 40 40 Highest-Rated Ally 16 | . . 16 16 16 Total Orders . | . . . . . Ally Attacks 60 | . . . 31 29 Total Damage 523 | . . . 308 215 Kills 7 | . . . 6 1 Allies Corrupted . | . . . . . Allies Melted . | . . . . . Intel | -11 -10 -10 -9 -8 ------- Run | Yrd Mat Min Mat Mat Robot Analysis Total . | . . . . . Derelict Logs Recovered 1 | . . 1 . . Drone Launches . | . . . . . Drone Recoveries . | . . . . . Exploration | -11 -10 -10 -9 -8 ------------- Run | Yrd Mat Min Mat Mat Turns Passed 1672 | 68 533 581 271 219 Spaces Moved 785 | 39 247 275 137 87 Core 11 | 5 . 3 . 3 Treads 363 | 34 247 82 . . Legs 411 | . . 190 137 84 Wheels . | . . . . . Hover . | . . . . . Flight . | . . . . . Fastest Speed 50 | 50 160 160 120 120 Average Speed 168 | 145 160 184 173 149 Slowest Speed 500 | 160 160 500 190 400 Overloaded Moves . | . . . . . Propulsion Burnouts . | . . . . . Robots Hopped . | . . . . . Cave-ins Triggered 1 | . . . . 1 Exploration Rate (%) 23 | 5 30 52 16 16 Regions Visited 4 Branch Regions 1 Pre-discovered Areas . | . . . . . Known Exits Taken . | . . . . . Unknown Exits Taken 4 | 1 1 1 1 . Scrap Searched . | . . . . . Spaces Dug . | . . . . . Terrain Destroyed 149 | . 20 40 16 73 Melee . | . . . . . Projectile 2 | . . . . 2 AOE 147 | . 20 40 16 71 Terrain Rammed . | . . . . . Walls Destroyed . | . . . . . Machines Disabled . | . . . . . Actions | -11 -10 -10 -9 -8 --------- Run | Yrd Mat Min Mat Mat Total 956 | 50 305 316 157 128 Wait . | . . . . . Move 781 | 38 246 274 136 87 Hop . | . . . . . Pick Up 33 | 6 7 10 7 3 Fast Attach . | . . . . . Attach 29 | 6 1 8 4 10 Detach . | . . . . . Swap 24 | . 10 5 3 6 Drop 2 | . . 1 1 . Fire 86 | . 40 18 6 22 Melee . | . . . . . Ram . | . . . . . Kick . | . . . . . Crush 1 | . 1 . . . Escape Stasis . | . . . . . Rewire . | . . . . . Trap . | . . . . . Miscellaneous . | . . . . . Route ------- -11/Scrapyard -10/Materials -10/Mines -9/Materials -8/Materials History --------- Turn | Location | Event 4 | -11/Scrapyard | Discovered new exit (range 16) 69 | -11/Scrapyard | Entered Materials 315 | -10/Materials | Build established: Mutant 562 | -10/Materials | Discovered new exit (range 9) 602 | -10/Materials | Entered Mines 638 | -10/Mines | Met a Derelict bent on vengeance 675 | -10/Mines | Excavation squad dispatched 675 | -10/Mines | A large section of the Mines collapsed 774 | -10/Mines | Core integrity fell below 50% 828 | -10/Mines | Lost 6 parts (1p3n2w) 925 | -10/Mines | Excavation squad dispatched 1008 | -10/Mines | Assisted by bots powering up and referring to "LRC-V3" 1033 | -10/Mines | Learned 2 Materials zone layouts 1173 | -10/Mines | Build established: Scavenger-Mutant 1174 | -10/Mines | Discovered new exit (range 6) 1183 | -10/Mines | Entered Materials 1183 | -9/Materials | Accompanied by 3 allies 1183 | -9/Materials | Evolved 2 slots: Power x1, Weapon x1 1419 | -9/Materials | Discovered new exit (range 13) 1454 | -9/Materials | Entered another Materials area 1454 | -8/Materials | Accompanied by 3 allies 1454 | -8/Materials | Evolved 2 slots: Propulsion x1, Utility x1 1564 | -8/Materials | Destroyed 8 combat bots 1613 | -8/Materials | Crushed by falling debris 1613 | -8/Materials | System corruption reached 10% 1642 | -8/Materials | Core integrity fell below 50% 1667 | -8/Materials | Core integrity fell below 20% 1673 | -8/Materials | Destroyed by G-47 Trooper with Particle Gun Last Messages --------------- U-05 Engineer lays Concrete. Missile Launcher destroyed. U-05 Engineer lays Concrete. U-05 Engineer builds a Wall. Critical hit (Burn: +37). System corrupted: FCS attempts to trigger Hvy. Ion Cannon. System corrupted: Hvy. Ion Cannon misfires. U-05 Engineer builds a Wall. Atomic Centrifuge disabled. ALERT: Suspicious intruders detected, dispatching Specialist reinforcements to area. Hvy. Ion Cannon destroyed. Sml. Laser destroyed. Aluminum Leg destroyed. ARZONEUXKOJ,L9E XVZ%G Aluminum Leg destroyed. Critical hit (Burn: +37). Sml. Laser destroyed. G-47 Trooper destroyed. Map ----- +----------------------------------------------------+ | ?????????????????????????????????????????????????? | | ?????????????????????????????????????????????????? | | ?????????????????????????????????????????????????? | | ?????????????????????????????????????????????????? | | ?????????????????????????????????????????????????? | | ?????????????????????????????????????????????????? | | ?????????????????????????????????????????????????? | | ?????????????????????????????????????????????????? | | ?????????????????????????????????????????????????? | | ?????????????????????????????????????????????????? | | ?????????????????????????????????????????????????? | | ?????????????????????????????????????????????????? | | ?????????????????????????????????????????????????? | | ?????????????????????????????????????????????????? | | ?????????????????????????????H???????????????????? | | ?????????????????????????????????????????????????? | | ?????????????????????????????????????????????????? | | ?????????????????????????????????????????????????? | | ?# #????# #????????????????????????????????????? | | ?# #????# #????????????????????????????????????? | | ## ######+#######??????????????????????????????? | | # # ? ??????????????????????????????? | | # # ####????????????????#?????????????? | | # # ##############????? ??????????????? | | # # ## """ """ !#???? ???????????????? | | # + ## """ """@ #??? ????????????????? | | # # ## """ ""%g #?? #????????????????? | | + # ## g #? #????????????????? | | # # ## gg g # #????????????????? | | # ##################/##### #????????????????? | | ## ##???????# #????????????????? | | # ######### #????????????????? | | #????????????????? | | T ############ ##"#/#######????????????????? | | #??????????# ## #???????????????????? | | # #??????????# ## #???????????????????? | | #######??????????# ## """ #???????????????????? | | #????????????????# ## """ #???????????????????? | | #????????????????# ## """ #???????????????????? | | #?????????######## !##= #???????????????????? | | #????????##==]][[# =%=# ## ######???????????????? | | #####????# == ] [# |!== #???????????????? | | #????## #%= """ #???????????????? | | ###### % # != = """ #???????????????? | | + % %!!=% = % "" #???????????????? | | ####### ######*[= = " " #???????????????? | | #?????# # # #%%! ! #???????????????? | | #??#########=[=%=# [%= ! #???????????????? | | #??# *%==% # ## ######???????????????? | | #??# ! """ #%!= # ? ???????????????????? | +----------------------------------------------------+ Best States ------------- Heat Dissipation 45 Energy Generation 15 Energy Capacity 275 Matter Stores 300 Matter Capacity 450 Sight Range 16 Terrain Scan Density 10 Evasion (%) 55 Recoil Reduction 2 Item Schematics ----------------- None Robot Schematics ------------------ None Fabricated ------------ Nothing Alien Tech Used ----------------- None Achievements -------------- Loot Pinata Challenges ------------ None Game ------ Seed ThiefWeaponsCleaver Manual? 0 Play Time 00:20:44 Cumulative 3.4 hours Start 2024.04.21 @ 09:11:10 End 2024.04.21 @ 09:30:03 Sessions 1 Manual Loads 0 Difficulty Rogue Special Mode None Game No. 11 Rogue 11 Adventurer 0 Explorer 0 Win Type - Total 0 Types 0/0/0/0/0/0/0/0/0 Lore% 11 Gallery% 9 Achievement% 8 Wizard Run 0 Options --------- Layout 1 ASCII 0 Keyboard 0 Movement Mouse Keybinds 0 Fullscreen 1 Font 24/Smallcaps Map View 50x35 Zoom Use 0% Tactical HUD 0 Map Filters NONE Filters NONE Steam 1 RUN: 3902d497-887e-499e-998c-b4d03df7e394